[Event "*** Titled Tuesday 3|2 Blitz"]
[Site "Chess.com"]
[Date "2016.01.05"]
[Round "9"]
[White "TheMagician"]
[Black "cool64chess"]
[Result "0-1"]
[WhiteElo "2151"]
[BlackElo "2227"]
[TimeControl "180+2"]
[EndTime "18:55:00 PST"]
[Termination "cool64chess won by resignation"]

1. d4 {[%clk 0:03:01.9]} 1... d5 {[%clk 0:02:59.5]} 2. Nc3 {[%clk 0:03:01.5]}
2... e6 {[%clk 0:02:58.7]} 3. e4 {[%clk 0:03:01.6]} 3... Bb4 {[%clk 0:02:58.8]}
4. e5 {[%clk 0:02:59.5]} 4... c5 {[%clk 0:02:58.6]} 5. a3 {[%clk 0:02:59.4]}
5... Bxc3+ {[%clk 0:02:59.2]} 6. bxc3 {[%clk 0:03:00.9]} 6... Qc7 {[%clk
0:02:59.7]} 7. Nf3 {[%clk 0:02:51.9]} 7... b6 {[%clk 0:02:58.6]} 8. a4 {[%clk
0:02:52.8]} 8... Ne7 {[%clk 0:02:46.3]} 9. Bb5+ {[%clk 0:02:52.5]} 9... Bd7
{[%clk 0:02:45.8]} 10. O-O {[%clk 0:02:53]} 10... O-O {[%clk 0:02:32.8]} 11. Ba3
{[%clk 0:02:50.1]} 11... f6 {[%clk 0:02:23.9]} 12. Qe2 {[%clk 0:02:33.4]} 12...
a6 {[%clk 0:02:16.2]} 13. Bxd7 {[%clk 0:02:31.9]} 13... Nxd7 {[%clk 0:02:14.4]}
14. exf6 {[%clk 0:02:26]} 14... Rxf6 {[%clk 0:02:14.8]} 15. a5 {[%clk
0:02:14.2]} 15... Ng6 {[%clk 0:02:00.6]} 16. axb6 {[%clk 0:02:13.5]} 16... Qxb6
{[%clk 0:02:01.3]} 17. Bxc5 {[%clk 0:02:01]} 17... Nxc5 {[%clk 0:02:00.3]} 18.
dxc5 {[%clk 0:02:02.5]} 18... Qxc5 {[%clk 0:02:01.1]} 19. Rxa6 {[%clk
0:02:00.7]} 19... Rxa6 {[%clk 0:02:00.4]} 20. Qxa6 {[%clk 0:02:01.5]} 20... Qxc3
{[%clk 0:02:00.9]} 21. Ng5 {[%clk 0:01:55.8]} 21... Qe5 {[%clk 0:01:27]} 22. h4
{[%clk 0:01:27.3]} 22... h6 {[%clk 0:01:21]} 23. Qc8+ {[%clk 0:01:01.6]} 23...
Nf8 {[%clk 0:01:20.5]} 24. Nf3 {[%clk 0:00:55.4]} 24... Qh5 {[%clk 0:01:11.9]}
25. Rb1 {[%clk 0:00:53.9]} 25... Kh7 {[%clk 0:00:58]} 26. Qc3 {[%clk 0:00:50.8]}
26... Ng6 {[%clk 0:00:52]} 27. Qd3 {[%clk 0:00:47.5]} 27... Qf5 {[%clk
0:00:38.1]} 28. Rb6 {[%clk 0:00:37.5]} 28... Qxd3 {[%clk 0:00:31.1]} 29. cxd3
{[%clk 0:00:38.4]} 29... Nf4 {[%clk 0:00:23.6]} 30. Rb3 {[%clk 0:00:25.5]} 30...
Rf8 {[%clk 0:00:18]} 31. Ne5 {[%clk 0:00:18.5]} 31... Ne2+ {[%clk 0:00:12.5]}
32. Kf1 {[%clk 0:00:19.1]} 32... Nd4 {[%clk 0:00:10.2]} 33. Rb4 {[%clk
0:00:19.8]} 33... Nf5 {[%clk 0:00:11.2]} 34. Rf4 {[%clk 0:00:19.7]} 34... g5
{[%clk 0:00:10]} 35. hxg5 {[%clk 0:00:20.7]} 35... hxg5 {[%clk 0:00:11.9]} 36.
Rg4 {[%clk 0:00:21.9]} 36... Ne3+ {[%clk 0:00:11.7]} 37. Ke2 {[%clk 0:00:22.9]}
37... Nxg4 {[%clk 0:00:13.6]} 38. Nxg4 {[%clk 0:00:24.3]} 38... Rf4 {[%clk
0:00:14.3]} 39. f3 {[%clk 0:00:24.3]} 39... Ra4 {[%clk 0:00:15.1]} 40. Nf6+
{[%clk 0:00:24.2]} 40... Kg6 {[%clk 0:00:16.1]} 41. Nd7 {[%clk 0:00:26.1]} 41...
Ra2+ {[%clk 0:00:16.9]} 42. Kf1 {[%clk 0:00:26.9]} 42... Kf5 {[%clk 0:00:18]}
43. Nc5 {[%clk 0:00:26.8]} 43... e5 {[%clk 0:00:18.5]} 44. g3 {[%clk 0:00:26.7]}
44... g4 {[%clk 0:00:18.8]} 45. fxg4+ {[%clk 0:00:27.5]} 45... Kxg4 {[%clk
0:00:20.7]} 46. Nd7 {[%clk 0:00:28.7]} 46... e4 {[%clk 0:00:19.6]} 47. dxe4
{[%clk 0:00:29.6]} 47... dxe4 {[%clk 0:00:21.5]} 48. Nc5 {[%clk 0:00:30.4]}
48... Kf3 {[%clk 0:00:21.9]} 49. Ke1 {[%clk 0:00:31.5]} 49... e3 {[%clk
0:00:23.2]} 50. Nb3 {[%clk 0:00:30.3]} 50... Rg2 {[%clk 0:00:22.9]} 51. Nd4+
{[%clk 0:00:31]} 51... Ke4 {[%clk 0:00:24.1]} 52. Ne2 {[%clk 0:00:32.9]} 52...
Rh2 {[%clk 0:00:22.4]} 53. Kf1 {[%clk 0:00:33.1]} 53... Kd3 {[%clk 0:00:22]} 54.
Nf4+ {[%clk 0:00:34]} 54... Kd2 {[%clk 0:00:22.6]} 55. g4 {[%clk 0:00:32.7]}
55... e2+ {[%clk 0:00:23.4]} 56. Nxe2 {[%clk 0:00:32.6]} 56... Rxe2 {[%clk
0:00:25.3]} 57. g5 {[%clk 0:00:34.2]} 57... Re5 {[%clk 0:00:25.9]} 58. Kf2
{[%clk 0:00:35.3]} 58... Rf5+ {[%clk 0:00:26.2]} 59. Kg3 {[%clk 0:00:35.3]}
59... Rxg5+ {[%clk 0:00:27.6]} 60. Kf4 {[%clk 0:00:37.2]} 60... Rg8 {[%clk
0:00:28.6]} 61. Ke4 {[%clk 0:00:39]} 61... Ke2 {[%clk 0:00:29.7]} 62. Kd4 {[%clk
0:00:40.3]} 62... Rg5 {[%clk 0:00:30.5]} 63. Ke4 {[%clk 0:00:41.3]} 63... Rg4+
{[%clk 0:00:31.5]} 64. Kf5 {[%clk 0:00:42.9]} 64... Kf3 {[%clk 0:00:32.7]} 65.
Ke5 {[%clk 0:00:44.5]} 65... Rf4 {[%clk 0:00:34]} 66. Kd5 {[%clk 0:00:44.9]}
66... Re4 {[%clk 0:00:35]} 67. Kc5 {[%clk 0:00:45.6]} 67... Kf4 {[%clk
0:00:35.3]} 68. Kd5 {[%clk 0:00:47.5]} 68... Kf5 {[%clk 0:00:36.7]} 69. Kd6
{[%clk 0:00:48.7]} 69... Re5 {[%clk 0:00:37]} 70. Kd7 {[%clk 0:00:49.1]} 70...
Re6 {[%clk 0:00:37.9]} 71. Kc7 {[%clk 0:00:49.5]} 71... Ke5 {[%clk 0:00:38.5]}
72. Kd7 {[%clk 0:00:51.4]} 72... Kd5 {[%clk 0:00:39.1]} 73. Kc7 {[%clk
0:00:52.3]} 73... Rd6 {[%clk 0:00:40.4]} 74. Kb7 {[%clk 0:00:53.2]} 74... Rc6
{[%clk 0:00:41.7]} 75. Ka7 {[%clk 0:00:53.9]} 75... Kc5 {[%clk 0:00:42.7]} 76.
Kb7 {[%clk 0:00:55.3]} 76... Kb5 {[%clk 0:00:43.6]} 77. Ka7 {[%clk 0:00:54.6]}
77... Rc7+ {[%clk 0:00:43.1]} 78. Ka8 {[%clk 0:00:56.2]} 78... Kb6 {[%clk
0:00:40]} 79. Kb8 {[%clk 0:00:58.1]} 79... Rc6 {[%clk 0:00:41.6]} 0-1

[Event "*** Titled Tuesday 3|2 Blitz"]
[Site "Chess.com"]
[Date "2016.01.05"]
[Round "9"]
[White "Smirnov_Pavel"]
[Black "FairChess_on_YouTube"]
[Result "0-1"]
[WhiteElo "2376"]
[BlackElo "2749"]
[TimeControl "180+2"]
[EndTime "18:55:31 PST"]
[Termination "FairChess_on_YouTube won by checkmate"]

1. d4 {[%clk 0:03:01.9]} 1... g6 {[%clk 0:03:00.8]} 2. e4 {[%clk 0:03:02.3]}
2... Bg7 {[%clk 0:03:02.1]} 3. Nc3 {[%clk 0:03:03.3]} 3... d6 {[%clk 0:03:02.7]}
4. f4 {[%clk 0:03:04.4]} 4... a6 {[%clk 0:03:03.5]} 5. Nf3 {[%clk 0:03:05.2]}
5... b5 {[%clk 0:03:04.5]} 6. Bd3 {[%clk 0:03:06]} 6... Bb7 {[%clk 0:03:04.8]}
7. a4 {[%clk 0:03:07]} 7... b4 {[%clk 0:03:05.4]} 8. Ne2 {[%clk 0:03:08.1]} 8...
Nd7 {[%clk 0:03:03]} 9. c3 {[%clk 0:03:09.1]} 9... a5 {[%clk 0:03:00.7]} 10. O-O
{[%clk 0:03:08.6]} 10... c5 {[%clk 0:02:53.2]} 11. e5 {[%clk 0:03:05.5]} 11...
Nh6 {[%clk 0:02:45.5]} 12. Ng3 {[%clk 0:02:55.2]} 12... O-O {[%clk 0:02:26.7]}
13. Qe2 {[%clk 0:02:15.3]} 13... e6 {[%clk 0:01:57.1]} 14. Ne4 {[%clk
0:02:15.2]} 14... cxd4 {[%clk 0:01:49.4]} 15. cxd4 {[%clk 0:02:09.5]} 15... Nf5
{[%clk 0:01:49.9]} 16. g4 {[%clk 0:02:05.5]} 16... Nxd4 {[%clk 0:01:38.5]} 17.
Nxd4 {[%clk 0:02:06]} 17... dxe5 {[%clk 0:01:40]} 18. Nb5 {[%clk 0:02:06.8]}
18... f5 {[%clk 0:01:22.2]} 19. Ned6 {[%clk 0:02:07.5]} 19... Bd5 {[%clk
0:01:07]} 20. Bc4 {[%clk 0:02:08.5]} 20... Ra6 {[%clk 0:00:58.6]} 21. gxf5
{[%clk 0:01:56.6]} 21... Rxd6 {[%clk 0:00:48.3]} 22. Nxd6 {[%clk 0:01:51.4]}
22... Qb6+ {[%clk 0:00:48.4]} 23. Be3 {[%clk 0:01:50.1]} 23... Qxd6 {[%clk
0:00:49.9]} 24. fxe6 {[%clk 0:01:46.7]} 24... Qxe6 {[%clk 0:00:48.5]} 25. Bxd5
{[%clk 0:01:46.4]} 25... Qxd5 {[%clk 0:00:50.1]} 26. Rad1 {[%clk 0:01:46.6]}
26... Qe6 {[%clk 0:00:50.9]} 27. Qg2 {[%clk 0:01:24.7]} 27... exf4 {[%clk
0:00:35.9]} 28. Bxf4 {[%clk 0:01:24]} 28... Nc5 {[%clk 0:00:36.6]} 29. Qd5
{[%clk 0:01:15.9]} 29... Qxd5 {[%clk 0:00:32.4]} 30. Rxd5 {[%clk 0:01:16.4]}
30... Nxa4 {[%clk 0:00:33.1]} 31. Rxa5 {[%clk 0:01:14.1]} 31... Nxb2 {[%clk
0:00:33.1]} 32. Bd6 {[%clk 0:01:14.3]} 32... Bd4+ {[%clk 0:00:16.6]} 33. Kg2
{[%clk 0:01:14.6]} 33... Rxf1 {[%clk 0:00:18.2]} 34. Kxf1 {[%clk 0:01:15.6]}
34... b3 {[%clk 0:00:19.6]} 35. Rd5 {[%clk 0:00:43]} 35... Nc4 {[%clk
0:00:20.5]} 36. Rb5 {[%clk 0:00:32.8]} 36... b2 {[%clk 0:00:16.5]} 37. Bf4
{[%clk 0:00:30.3]} 37... Na3 {[%clk 0:00:15.8]} 38. Rb8+ {[%clk 0:00:31.4]}
38... Kf7 {[%clk 0:00:17]} 39. Rb7+ {[%clk 0:00:32.7]} 39... Ke6 {[%clk
0:00:17.2]} 40. Ke2 {[%clk 0:00:33.6]} 40... b1=Q {[%clk 0:00:17]} 41. Rxb1
{[%clk 0:00:22.6]} 41... Nxb1 {[%clk 0:00:17.9]} 42. h3 {[%clk 0:00:06.8]} 42...
Be5 {[%clk 0:00:17.6]} 43. Bc1 {[%clk 0:00:07.4]} 43... Nc3+ {[%clk 0:00:18.5]}
44. Kf3 {[%clk 0:00:08.7]} 44... Kf5 {[%clk 0:00:19.1]} 45. Bd2 {[%clk
0:00:09.9]} 45... Ne4 {[%clk 0:00:20]} 46. Bc1 {[%clk 0:00:11.2]} 46... Ng5+
{[%clk 0:00:19.3]} 47. Kg2 {[%clk 0:00:12.5]} 47... Bf4 {[%clk 0:00:20.4]} 48.
Bb2 {[%clk 0:00:13]} 48... Ke4 {[%clk 0:00:21.2]} 49. Bc3 {[%clk 0:00:13.7]}
49... Nf3 {[%clk 0:00:22.4]} 50. Bb4 {[%clk 0:00:14.4]} 50... Nh4+ {[%clk
0:00:23.4]} 51. Kf2 {[%clk 0:00:15.1]} 51... Nf5 {[%clk 0:00:20.2]} 52. Kg2
{[%clk 0:00:15.2]} 52... Bg5 {[%clk 0:00:20.3]} 53. Kf2 {[%clk 0:00:16.1]} 53...
Bh4+ {[%clk 0:00:21.5]} 54. Kg2 {[%clk 0:00:17.1]} 54... Ne3+ {[%clk 0:00:22.7]}
55. Kh2 {[%clk 0:00:18.1]} 55... Kf3 {[%clk 0:00:23.9]} 56. Bc3 {[%clk
0:00:18.7]} 56... Nf1+ {[%clk 0:00:22.9]} 57. Kg1 {[%clk 0:00:19.5]} 57... Ng3
{[%clk 0:00:23.5]} 58. Kh2 {[%clk 0:00:20.5]} 58... Ne2 {[%clk 0:00:24.5]} 59.
Bb4 {[%clk 0:00:20.5]} 59... Bg3+ {[%clk 0:00:25.1]} 60. Kh1 {[%clk 0:00:21.5]}
60... Nf4 {[%clk 0:00:26.7]} 61. Bd6 {[%clk 0:00:19.8]} 61... h5 {[%clk
0:00:18.4]} 62. Bc7 {[%clk 0:00:18.9]} 62... Bf2 {[%clk 0:00:19.2]} 63. Kh2
{[%clk 0:00:18.5]} 63... g5 {[%clk 0:00:15.7]} 64. Bd6 {[%clk 0:00:17.8]} 64...
g4 {[%clk 0:00:13.3]} 65. hxg4 {[%clk 0:00:19]} 65... hxg4 {[%clk 0:00:14.9]}
66. Bxf4 {[%clk 0:00:18.2]} 66... Kxf4 {[%clk 0:00:15.6]} 67. Kg2 {[%clk
0:00:19.5]} 67... Bc5 {[%clk 0:00:15.8]} 68. Kf1 {[%clk 0:00:20.3]} 68... Kf3
{[%clk 0:00:16.3]} 69. Ke1 {[%clk 0:00:21.7]} 69... g3 {[%clk 0:00:17.6]} 70.
Kd2 {[%clk 0:00:22.7]} 70... g2 {[%clk 0:00:19]} 71. Kd3 {[%clk 0:00:23.8]}
71... g1=Q {[%clk 0:00:19.7]} 72. Kc4 {[%clk 0:00:24.8]} 72... Qd4+ {[%clk
0:00:21.3]} 73. Kb5 {[%clk 0:00:25.9]} 73... Ke4 {[%clk 0:00:22.4]} 74. Kc6
{[%clk 0:00:26.9]} 74... Qb4 {[%clk 0:00:23.6]} 75. Kc7 {[%clk 0:00:27.9]} 75...
Kd5 {[%clk 0:00:24.3]} 76. Kd7 {[%clk 0:00:28.9]} 76... Qb7+ {[%clk 0:00:24.3]}
77. Ke8 {[%clk 0:00:30.1]} 77... Ke6 {[%clk 0:00:25.1]} 78. Kd8 {[%clk
0:00:30.6]} 78... Qb8# {[%clk 0:00:26.7]} 0-1